Cogmind - Beta 17 @@@ ROGUE MODE // 2026.07.30 @ 16:11:22 Player: LandRaider Result: Destroyed by G-47 Trooper with Particle Gun Performance ------------- Evolutions (2) 1000 Regions Visited (4) 800 Robots Destroyed (69) 345 Value Destroyed (1672) 1672 Prototype IDs (2) 40 Alien Tech Used (0) 0 Bonus (0) 0 TOTAL SCORE: 3857 Bonus ------- None Cogmind --------- Core Integrity 0/550 Matter 268/300 Energy 125/125 System Corruption 0% Temperature Cool (9) Movement Walking (470) Ox5 Location -8/Storage Parts ------- > --- POWER (1) -------- Light Ion Engine > --- PROPULSION (2) --- Carbon-fiber Leg > --- UTILITY (6) ------ Improved Heat Sink Huge Storage Unit Visual Processing Unit Transport Network Coupler Improved Targeting Computer > --- WEAPON (2) ------- Assault Rifle > --- INVENTORY (25) --- Heavy Ion Engine Light Treads Large Storage Unit Transport Network Coupler Improved Weapon Shielding Recalibrator Particle Gun Improved Medium Laser Improved Medium Laser Improved Medium Laser Heavy Particle Gun Advanced Beam Cannon Advanced Beam Cannon Advanced Beam Cannon Advanced Beam Cannon Light Assault Rifle Mini Grenade Launcher Mini Grenade Launcher Datajack Great Maul Peak State ------------ > --- POWER ------------ Ion Engine > --- PROPULSION ------- Light Treads > --- UTILITY ---------- Improved Heat Sink Huge Storage Unit Visual Processing Unit Transport Network Coupler Improved Targeting Computer Utility Shielding > --- WEAPON ----------- Beam Rifle Great Maul > --- INVENTORY -------- Light Ion Engine Heavy Ion Engine Light Treads Large Storage Unit Transport Network Coupler Improved Weapon Shielding Recalibrator Heavy EM Pulse Gun Beam Rifle Improved Medium Laser Improved Medium Laser Improved Medium Laser Heavy Particle Gun Advanced Beam Cannon Advanced Beam Cannon Advanced Beam Cannon Advanced Beam Cannon Assault Rifle Assault Rifle EMP Blaster Mini Grenade Launcher Mini Grenade Launcher Datajack [Rating: 22] Favorites ----------- Power Ion Engine Engine Ion Engine Propulsion Light Treads Treads Light Treads Leg Carbon-fiber Leg Wheel Compact Wheel Utility Huge Storage Unit Device Heat Sink Storage Huge Storage Unit Processor Improved Targeting Computer Protection Utility Shielding Weapon Light Assault Rifle Energy Gun Small Laser Energy Cannon Beam Cannon Ballistic Gun Light Assault Rifle Launcher EMP Blaster Impact Weapon Great Maul Build | -11 -10 -9 -8 -8 ------- Run | Yrd Mat Mat Mat Sto Slots Evolved 4 | . . 2 2 . Power . | . . . . . Propulsion . | . . . . . Utility 4 | . . 2 2 . Weapon . | . . . . . Parts Attached 47 | 5 13 15 3 11 Power 6 | 1 2 1 . 2 Engine 6 | 1 2 1 . 2 Core . | . . . . . Reactor . | . . . . . Propulsion 11 | 2 2 6 . 1 Treads 4 | . 2 2 . . Leg 1 | . . . . 1 Wheel 6 | 2 . 4 . . Hover . | . . . . . Flight . | . . . . . Utility 15 | 1 5 5 3 1 Device 7 | . 3 3 . 1 Storage 3 | 1 2 . . . Processor 3 | . . 1 2 . Hackware . | . . . . . Protection 2 | . . 1 1 . Artifact . | . . . . . Weapon 15 | 1 4 3 . 7 Energy Gun 6 | . 2 1 . 3 Energy Cannon 1 | . 1 . . . Ballistic Gun 6 | 1 1 2 . 2 Ballistic Cannon . | . . . . . Launcher 1 | . . . . 1 Special Weapon . | . . . . . Impact Weapon 1 | . . . . 1 Slashing Weapon . | . . . . . Piercing Weapon . | . . . . . Special Melee Weapon . | . . . . . Unidentified Prototypes . | . . . . . Parts Lost 28 | . 8 10 . 10 Power 4 | . 1 1 . 2 Propulsion 8 | . 2 4 . 2 Utility 6 | . 2 3 . 1 Weapon 10 | . 3 2 . 5 Highest Loss Streak 6 | . 2 3 . 6 To Critical Strikes . | . . . . . Average Backups 12 | 3 8 15 15 20 Power 1 | . 1 2 2 1 Propulsion 1 | 1 1 1 1 1 Utility 3 | . 3 4 3 4 Weapon 5 | 1 3 6 8 12 Tool/Special . | . . . . . Unused Backups 19 | . 2 . . 17 Power 1 | . . . . 1 Propulsion . | . . . . . Utility 4 | . 1 . . 3 Weapon 13 | . 1 . . 12 Tool/Special 1 | . . . . 1 Average Slot Usage (%) 91 | . 94 87 97 83 Engine 11 | . 13 10 9 5 Treads 13 | . 19 6 9 4 Wheel 8 | . 7 13 9 3 Device 12 | . 11 19 . 5 Storage 12 | . 14 11 9 9 Processor 5 | . . 3 26 27 Protection 2 | . . . 16 9 Energy Gun 8 | . 11 3 9 8 Energy Cannon 3 | . 2 6 . . Ballistic Gun 11 | . 13 10 9 7 Peak Build Rating 22 | 5 8 14 18 22 Average Rating 10 | 4 7 11 17 18 On Entrance 8 | . 5 8 13 18 Avg Prop Armor Cover (%) 11 | . . 11 10 10 Naked Turns . | . . . . . Heaviest Build 97 | 9 90 97 95 95 Greatest Support 40 | 32 40 40 16 16 Greatest Overweight (x) 28 | 1 5 6 5 28 Average Overweight (x) 1 | . . 3 5 6 Largest Inventory Capacity 25 | 8 25 25 25 25 Average Capacity 18 | 7 14 25 25 25 Most Carried 25 | 5 13 21 19 25 Average Carried 12 | 3 8 15 15 20 Final Capacity 25 | 8 25 25 25 25 Final Carried 20 | 5 12 18 19 20 Class Distribution -------------------- 71% | Mutant 18% | Scavenger-Mutant 10% | Infiltrator-Mutant Dominant Class ---------------- Mutant | -10/Materials Mutant | -9/Materials Scavenger-Mutant | -8/Materials Scavenger-Mutant | -8/Storage Resources | -11 -10 -9 -8 -8 ----------- Run | Yrd Mat Mat Mat Sto Matter Collected 940 | 219 227 305 . 189 Remotely . | . . . . . Salvage Created 2492 | . 1007 711 52 722 Parts 126 | . 58 44 2 22 Haulers Intercepted 4 | . 2 2 . . Recyclers Shooed 4 | . . . . 4 Parts Field Recycled . | . . . . . Retrieved Matter . | . . . . . Parts Self-Destructed . | . . . . . Prevented . | . . . . . Parts Restored . | . . . . . Kills | -11 -10 -9 -8 -8 ------- Run | Yrd Mat Mat Mat Sto Combat Hostiles Destroyed 57 | . 26 17 1 13 Melee 2 | . . . . 2 Guns 43 | . 22 13 1 7 Cannons 8 | . 4 4 . . Classes Destroyed 10 | . 6 2 . 2 Hauler 4 | . 2 2 . . Recycler 4 | . . 2 . 2 Mechanic 1 | . 1 . . . Operator 1 | . 1 . . . Watcher 2 | . 2 . . . Swarmer 24 | . 12 10 . 2 Grunt 26 | . 14 4 1 7 Brawler 1 | . . . . 1 Duelist 3 | . . . . 3 Sentry 3 | . . 3 . . Best Kill Streak 10 | . 4 4 1 10 Combat Bots Only 10 | . 4 4 1 10 Max Kills in Single Turn 2 | . 1 2 1 1 Gunslinging 1 | . . 1 . . Exploded . | . . . . . Melee 1 | . . . . 1 Uniques/NPCs Destroyed . | . . . . . Combat | -11 -10 -9 -8 -8 -------- Run | Yrd Mat Mat Mat Sto Hostile Shots Fired 379 | . 142 122 10 105 Missed 95 | . 41 24 5 25 Hits 284 | . 101 98 5 80 Melee 13 | . . . 1 12 Projectile 271 | . 101 98 4 68 Critical Strikes 9 | . . 3 . 6 Damage Taken 3630 | . 1038 999 90 1503 Core 1053 | . 238 263 13 539 Absorbed by Shields . | . . . . . Redirected to Shielding 51 | . . . . 51 Core Remaining (%) 46 | 100 4 34 . . Volleys Fired 216 | . 103 53 4 56 Largest 2 | . 2 2 2 2 Hottest 88 | . 80 88 88 79 Shots Fired 386 | . 197 94 8 87 Gun 349 | . 181 74 8 86 Cannon 36 | . 16 20 . . Launcher 1 | . . . . 1 Special . | . . . . . Kinetic 181 | . 89 53 4 35 Thermal 192 | . 97 41 4 50 Explosive . | . . . . . Electromagnetic 13 | . 11 . . 2 Robot Hit Streak 20 | . 13 10 3 20 Robot Miss Streak 5 | . 5 3 2 2 Penetration Max . | . . . . . Secondary Targets 6 | . 3 2 . 1 Max Gunslinging Chain 1 | . 1 1 . 1 Shots Hit Robots 261 | . 122 55 5 79 Core Hits 109 | . 55 25 2 27 Critical Kills 1 | . . . . 1 Critical Parts Destroyed 2 | . . . . 2 Critical Strikes 6 | . . . . 6 Burn 3 | . . . . 3 Smash 3 | . . . . 3 Melee Attacks 13 | . . . . 13 Impact 13 | . . . . 13 Slashing . | . . . . . Piercing . | . . . . . Sneak Attacks . | . . . . . Combat Hostiles . | . . . . . Follow-up Attacks . | . . . . . Damage Inflicted 3754 | . 1305 892 80 1477 Guns 2764 | . 1113 612 80 959 Cannons 472 | . 192 280 . . Explosions 115 | . . . . 115 Melee 403 | . . . . 403 Ramming . | . . . . . Kinetic 1222 | . 378 486 46 312 Thermal 1885 | . 810 406 34 635 Explosive . | . . . . . Electromagnetic 244 | . 117 . . 127 Impact 403 | . . . . 403 Slashing . | . . . . . Piercing . | . . . . . Highest Corruption 2 | . . 2 . . Average Corruption 2 | . . 2 . . Corruption Purged . | . . . . . Corruption Blocked . | . . . . . Effects 6 | . . 6 . . Message Errors 2 | . . 2 . . Heat Flow Errors 1 | . . 1 . . Data Loss (major) 2 | . . 2 . . Misfires 1 | . . 1 . . Overload Shots . | . . . . . Overflow Damage 85 | . . . . 85 Projectiles . | . . . . . Explosions . | . . . . . Melee 85 | . . . . 85 Knockbacks 1 | . . . . 1 Impact 1 | . . . . 1 Kinetic . | . . . . . Secondary . | . . . . . Self-Inflicted Damage 19 | . . . . 19 Shots 1 | . . . . 1 Rammed . | . . . . . Targets Rammed . | . . . . . Kicked . | . . . . . Crushed . | . . . . . Highest Temperature 244 | . 135 216 99 244 Average Temperature 54 | . 34 53 50 119 Received Heat Transfer 1269 | . 405 225 36 603 Siege Activations . | . . . . . Martial Activations . | . . . . . Shielding Activations . | . . . . . Robots Disrupted . | . . . . . Combat Hostiles . | . . . . . Robots Corrupted 3 | . . . . 3 Combat Hostiles 3 | . . . . 3 Parts Fried 6 | . . . . 6 Impact Corruptions 4 | . . . . 4 Robots Melted 1 | . . . . 1 Combat Hostiles 1 | . . . . 1 Parts Melted 6 | . 2 2 . 2 Heat Transferred 4475 | . 1807 888 74 1706 Parts Sabotaged . | . . . . . Parts Stolen . | . . . . . Parts Stripped . | . . . . . Power Chain Reactions . | . . . . . Alert | -11 -10 -9 -8 -8 ------- Run | Yrd Mat Mat Mat Sto Maximum Alert Level 1 | . 1 . . . Low Security (%) 93 | 100 87 100 100 100 Level 1 6 | . 12 . . . Level 2 . | . . . . . Level 3 . | . . . . . Level 4 . | . . . . . Level 5 . | . . . . . High Security . | . . . . . Max Security . | . . . . . Peak Influence 221 | . 221 135 57 146 Initial 81 | . . 81 47 19 Average 106 | . 141 71 32 68 Influence Increases 1637 | . 763 488 50 336 Destroy 0b10 Robot/C 1140 | . 520 340 20 260 Destroy 0b10 Robot/NC 60 | . 30 20 . 10 Destroy Leader 242 | . 108 84 . 50 Successful Hack 57 | . 45 12 . . Disable Machine 30 | . . 15 . 15 Destroy Structure 3 | . . 2 . 1 Lose Combat Pursuer 105 | . 60 15 30 . Influence Decreases 1523 | . 569 569 116 269 Entered New Map 207 | . . 113 66 28 Time Decay 1056 | . 489 356 50 161 Lost Part 260 | . 80 100 . 80 Squads Dispatched 13 | . 5 2 . 6 Investigation 6 | . 5 1 . . Extermination . | . . . . . Reinforcement 2 | . . 1 . 1 Assault 2 | . . . . 2 Garrison 3 | . . . . 3 Intercept . | . . . . . Searches Triggered . | . . . . . Construction Impeded . | . . . . . Haulers Reinforced . | . . . . . Active Scanning Responses . | . . . . . Cargo Convoy Interrupts . | . . . . . Stealth | -11 -10 -9 -8 -8 --------- Run | Yrd Mat Mat Mat Sto Distress Signals 2 | . 1 . . 1 Communications Jammed . | . . . . . Distress Signals . | . . . . . Times Spotted 89 | . 44 18 6 21 Peak Tracking Total 5 | . 5 4 4 5 Tactical Retreats 7 | . 4 2 1 . ECM-based Alert Blocks 1 | . . 1 . . Traps | -11 -10 -9 -8 -8 ------- Run | Yrd Mat Mat Mat Sto Traps Triggered 3 | . 2 1 . . Indirectly . | . . . . . Trap Hack Attempts . | . . . . . Triggered . | . . . . . Disarmed . | . . . . . Reprogrammed . | . . . . . Reused . | . . . . . Traps Extracted . | . . . . . Installed . | . . . . . Triggered . | . . . . . Machines | -11 -10 -9 -8 -8 ---------- Run | Yrd Mat Mat Mat Sto Machines Disabled 2 | . . 1 . 1 Max in Single Turn 1 | . . 1 . 1 Machines Repaired . | . . . . . Machines Dismantled . | . . . . . Machines Sabotaged . | . . . . . Overloaded Fab Kills . | . . . . . Hacking | -11 -10 -9 -8 -8 --------- Run | Yrd Mat Mat Mat Sto Machines Accessed 11 | . 8 3 . . Terminals 9 | . 7 2 . . Fabricators . | . . . . . Repair Stations . | . . . . . Recycling Units 2 | . 1 1 . . Scanalyzers . | . . . . . Garrison Access . | . . . . . Total Hacks 27 | . 19 8 . . Successful 18 | . 13 5 . . Failed 9 | . 6 3 . . Catastrophic 1 | . 1 . . . Database Lockouts . | . . . . . Manual . | . . . . . Terminals 24 | . 18 6 . . Fabricators . | . . . . . Repair Stations . | . . . . . Recycling Units 3 | . 1 2 . . Scanalyzers . | . . . . . Garrison Access . | . . . . . Terminal Hacks 15 | . 12 3 . . Record 6 | . 5 1 . . Prototype ID Bank 1 | . 1 . . . Terminal Index 1 | . 1 . . . Alert Level 1 | . 1 . . . Maintenance Status 2 | . 1 1 . . Hauler Manifests 1 | . 1 . . . Zone Layout 3 | . 2 1 . . Fabricator Hacks . | . . . . . Repair Station Hacks . | . . . . . Recycling Unit Hacks 3 | . 1 2 . . Report Inventory 2 | . 1 1 . . Retrieve Components 1 | . . 1 . . Scanalyzer . | . . . . . Garrison Access Hacks . | . . . . . Unauthorized Hacks . | . . . . . Terminals . | . . . . . Fabricators . | . . . . . Repair Stations . | . . . . . Recycling Units . | . . . . . Scanalyzers . | . . . . . Garrison Access . | . . . . . Data Cores Recovered . | . . . . . Used . | . . . . . Hacking Detections 10 | . 8 2 . . Full Trace Events 4 | . 3 1 . . Feedback Events . | . . . . . Feedback Blocked . | . . . . . Robot Schematics Acquired . | . . . . . Robots Built . | . . . . . Authchips . | . . . . . Time . | . . . . . Total Robot Build Rating . | . . . . . Part Schematics Acquired . | . . . . . Parts Built . | . . . . . Authchips . | . . . . . Time . | . . . . . Total Part Build Rating . | . . . . . Part Studies Acquired . | . . . . . Parts Repaired . | . . . . . Time . | . . . . . Parts Recycled . | . . . . . Recycled Matter . | . . . . . Retrieved Matter . | . . . . . Retrieved Components 6 | . . 6 . . Parts Scanalyzed . | . . . . . Part Schematics Acquired . | . . . . . Parts Damaged . | . . . . . Bothacking | -11 -10 -9 -8 -8 ------------ Run | Yrd Mat Mat Mat Sto Used RIF Installer . | . . . . . Robots Hacked . | . . . . . Non-combat . | . . . . . Combat . | . . . . . Robot Hacks Applied . | . . . . . Relay Couplers Released . | . . . . . Fabnet Peak Effective % . | . . . . . Robots Rewired . | . . . . . Allies Hacked . | . . . . . Hacks Repelled . | . . . . . Allies | -11 -10 -9 -8 -8 -------- Run | Yrd Mat Mat Mat Sto Total Allies 2 | . . . . 2 Largest Group 2 | . . . . 2 Highest-Rated Group 62 | . . . . 62 Highest-Rated Ally 31 | . . . . 31 Total Orders . | . . . . . Ally Attacks 8 | . . . . 8 Total Damage 101 | . . . . 101 Kills . | . . . . . Allies Corrupted . | . . . . . Allies Melted . | . . . . . Intel | -11 -10 -9 -8 -8 ------- Run | Yrd Mat Mat Mat Sto Active Infowar (turns) 1370 | . 256 538 107 469 Optics 575 | . . . 106 469 Sensors 256 | . 256 . . . Structural 537 | . . 537 . . T.N.C. 576 | . . . 107 469 ECM 366 | . . 366 . . Robot Analysis Total . | . . . . . Derelict Logs Recovered . | . . . . . Drone Launches . | . . . . . Drone Recoveries . | . . . . . Exploration | -11 -10 -9 -8 -8 ------------- Run | Yrd Mat Mat Mat Sto Turns Passed 3223 | 74 1769 804 107 469 Spaces Moved 1400 | 38 862 357 51 92 Core 17 | 5 8 . . 4 Treads 545 | . 522 23 . . Legs 16 | . . . . 16 Wheels 822 | 33 332 334 51 72 Hover . | . . . . . Flight . | . . . . . Fastest Speed 50 | 50 100 130 175 175 Average Speed 171 | 97 164 166 175 281 Slowest Speed 1450 | 100 320 320 175 1450 Overloaded Moves . | . . . . . Propulsion Burnouts . | . . . . . Robots Hopped . | . . . . . Potential Cave-ins . | . . . . . Cave-ins Triggered . | . . . . . Exploration Rate (%) 31 | 4 98 30 11 14 Regions Visited 4 Branch Regions 1 Pre-discovered Areas . | . . . . . Known Exits Taken . | . . . . . Unknown Exits Taken 4 | 1 1 1 1 . Scrap Searched . | . . . . . Spaces Dug . | . . . . . Terrain Destroyed . | . . . . . Melee . | . . . . . Projectile . | . . . . . AOE . | . . . . . Terrain Rammed . | . . . . . Walls Destroyed . | . . . . . Machines Disabled . | . . . . . Actions | -11 -10 -9 -8 -8 --------- Run | Yrd Mat Mat Mat Sto Total 1833 | 74 1035 473 61 190 Wait 76 | 22 32 21 . 1 Move 1396 | 37 861 356 50 92 Hop . | . . . . . Pick Up 68 | 10 20 20 4 14 Fast Attach 1 | . 1 . . . Attach 39 | 5 9 12 3 10 Detach . | . . . . . Swap 13 | . 4 8 . 1 Drop 11 | . 5 3 . 3 Fire 216 | . 103 53 4 56 Melee 13 | . . . . 13 Ram . | . . . . . Kick . | . . . . . Crush . | . . . . . Escape Stasis . | . . . . . Rewire . | . . . . . Trap . | . . . . . Miscellaneous . | . . . . . Route ------- -11/Scrapyard -10/Materials (discovered 4 exits: *Mat x3 / [*Min]) -9/Materials -8/Materials -8/Storage History --------- Turn | Location | Event 14 | -11/Scrapyard | Discovered new exit (range 15) 75 | -11/Scrapyard | Entered Materials 145 | -10/Materials | Discovered new exit (range 8) 307 | -10/Materials | Build established: Mutant 324 | -10/Materials | Discovered new exit (range 10) 372 | -10/Materials | Core integrity fell below 50% 492 | -10/Materials | Discovered new exit (range 15) 552 | -10/Materials | Discovered new exit (range 14) 983 | -10/Materials | Core integrity fell below 20% 1844 | -10/Materials | Entered another Materials area 1844 | -9/Materials | Evolved 2 slots: Utility x2 2404 | -9/Materials | Discovered new exit (range 12) 2457 | -9/Materials | Core integrity fell below 50% 2489 | -9/Materials | Lost 3 parts (1p1n1w) 2648 | -9/Materials | Entered another Materials area 2648 | -8/Materials | Evolved 2 slots: Utility x2 2723 | -8/Materials | Discovered new exit (range 6) 2755 | -8/Materials | Entered Storage 2839 | -8/Storage | Met a pair of Derelict thieves 2842 | -8/Storage | Build established: Scavenger-Mutant 2899 | -8/Storage | Garrison activated, responded to threat 2978 | -8/Storage | Core integrity fell below 50% 3032 | -8/Storage | Lost 6 parts (2p1n3w) 3043 | -8/Storage | Destroyed 10 combat bots 3066 | -8/Storage | Core integrity fell below 20% 3224 | -8/Storage | Destroyed by G-47 Trooper with Particle Gun Last Messages --------------- 03100_ Acquired Carbon-fiber Leg. 03101_ R-06 Scavenger collects Particle Gun. 03111_ Acquired 54 matter. 03116_ Acquired 126 matter. 03131_ O-16 Technician sends out distress signal. 03131_ O-16 Technician: "IFF HANDSHAKE FAILED. SECURING TERMINAL." 03137_ S-10 Pest destroyed. 03138_ Acquired 6 matter. 03141_ ALERT: Hostiles spotted, dispatching reinforcements to Terminal S003. 03145_ S-10 Pest destroyed. 03148_ Acquired 3 matter. 03158_ Acquired Lgt. Assault Rifle. 03168_ Acquired Lgt. Ion Engine. 03173_ R-06 Scavenger suffers critical hit (Burn). 03179_ Destroyed Lgt. Ion Engine. 03182_ R-06 Scavenger destroyed. 03200_ Acquired Corrupted Com. Wheel. 03201_ Dropped Corrupted Com. Wheel. 03204_ Beam Rifle destroyed. Map ----- +----------------------------------------------------+ | ????????????????????????????????????????????? | | ????????????????????????????????????????????? | | ????????????????????????????????????????????? | | ?????###############################????????? | | ?????# ??????? | | ?????# ??????? | | ?????# ^ ??????? | | ?????################+########??????????????? | | ?????????????????# #????a????????????? | | ?????????????????# """" #?????????????????? | | ?????????????????# ""??" #?????????????????? | | ?????????????????# ""???" #?????????????????? | | ?????????????????# "???"" #?????????????????? | | ?????????????????# "??"" #?????????????????? | | ?????????????????# """" #?????????????????? | | ?????????????????# #?????????????????? | | ?????????????????# #?????????????????? | | ?????????????????#+########?????????????????? | | ?????????######### #????????????????????????? | | ?????????# # # ##################???????? | | ?????????# " %# ????? | | ?????????# % %%%%+%= = ????? | | ?????????# " %# % !% ????? | | ?????????# # ####g################???????? | | ?????????# ###??# #??????????????????????? | | ?????????######????#@#??????????????????????? | | ???????????????????# #??????????????????????? | | ???????????????????#=#????????????????a?????? | | ???????????????????#u#??????????????????????? | | ???????????????????# #????????????????a?????? | | ???????????????????#+#??????????????????????? | | ??????????????????? ??????????????????????? | | ??????????????????? ??????????????????????? | | ??????????????????? ??????????????????????? | | ??????????????????? ??????????????????????? | | ??????????????????? ??????????????????????? | | ??????????????????? ??????????????????????? | | ??????????????????? ??????????????????????? | | ??????????????????? ??????????????????????? | | ??????????????????? ??????????????????????? | | ???????????????????#+#?????????????????a????? | | ????????????????????????????????????????????? | | ????????????????????????????????????????????? | | ????????????????????????????????????????????? | | ????????????????????????????????????????????? | | ????????????????????????????????????????????? | | ???????????????a????????????????????????????? | | ????????????????????????????????????????????? | | ????????????????????????????????????????????? | | ????????????????????????????????????????????? | +----------------------------------------------------+ Best States ------------- Heat Dissipation 45 Energy Generation 12 Energy Capacity 265 Matter Stores 300 Matter Capacity 300 Sight Range 18 Robot Scan Range 14 Terrain Scan Density 10 ECM Strength 1 Armor Coverage 150 Utility Shielding 33 Evasion (%) 40 Targeting Accuracy 6 Recoil Reduction 2 Item Schematics ----------------- None Robot Schematics ------------------ None Fabricated ------------ Nothing Repaired ---------- Nothing Studied --------- None Alien Tech Used ----------------- None Achievements -------------- Power Corrupts Challenges ------------ None Game ------ Seed RocketShadeFemtoactuators Manual? 0 Play Time 00:36:59 Cumulative 19.1 hours Start 2026.07.30 @ 15:26:52 End 2026.07.30 @ 16:11:22 Sessions 1 Manual Loads 0 Difficulty Rogue Special Mode None Game No. 14 Rogue 12 Adventurer 2 Explorer 0 Win Type - Total 0 Types 0/0/0/0/0/0/0/0/0/0 Lore% 10 Gallery% 13 Achievement% 13 Wizard Run 0 Options --------- Layout 0 ASCII 0 Keyboard 0 Movement Mouse Keybinds 0 Fullscreen 2 Font 24/Smallcaps Map View 76x50 Zoom Use 0% Tactical HUD 1 Map Filters NONE Filters NONE Steam 1 RUN: 3dba5ddf-336d-4245-b683-9c174c075614